[Event "*** Titled Tuesday 3|2 Blitz"]
[Site "Chess.com"]
[Date "2015.08.04"]
[Round "8"]
[White "proxy6"]
[Black "drifblim"]
[Result "0-1"]
[WhiteElo "1909"]
[BlackElo "2039"]
[TimeControl "180+2"]
[EndTime "13:12:36 PDT"]
[Termination "drifblim won by resignation"]

1. e4 {[%clk 0:02:53.4]} 1... e6 {[%clk 0:02:59.3]} 2. d4 {[%clk 0:02:54]} 2...
d5 {[%clk 0:03:00.6]} 3. Nc3 {[%clk 0:02:55.5]} 3... Nf6 {[%clk 0:03:01.9]} 4.
Bg5 {[%clk 0:02:55.7]} 4... Be7 {[%clk 0:03:02.8]} 5. e5 {[%clk 0:02:56.8]} 5...
Nfd7 {[%clk 0:03:04]} 6. Bxe7 {[%clk 0:02:58.7]} 6... Qxe7 {[%clk 0:03:04.9]} 7.
f4 {[%clk 0:02:59.8]} 7... a6 {[%clk 0:03:06.3]} 8. Nf3 {[%clk 0:03:00.6]} 8...
c5 {[%clk 0:03:07.6]} 9. Qd2 {[%clk 0:03:01.4]} 9... Nc6 {[%clk 0:03:09]} 10.
dxc5 {[%clk 0:03:01.8]} 10... Nxc5 {[%clk 0:03:10.1]} 11. Bd3 {[%clk 0:03:02.4]}
11... Nxd3+ {[%clk 0:03:11.5]} 12. cxd3 {[%clk 0:03:02.4]} 12... O-O {[%clk
0:03:13.2]} 13. O-O {[%clk 0:02:49.5]} 13... Bd7 {[%clk 0:03:10.9]} 14. Kh1
{[%clk 0:02:48.8]} 14... Rac8 {[%clk 0:03:11.8]} 15. Ne2 {[%clk 0:02:48.7]}
15... f6 {[%clk 0:03:12.3]} 16. Ned4 {[%clk 0:02:43.5]} 16... Nxd4 {[%clk
0:03:09]} 17. Nxd4 {[%clk 0:02:43.9]} 17... fxe5 {[%clk 0:03:10.4]} 18. fxe5
{[%clk 0:02:45.8]} 18... Qh4 {[%clk 0:03:07.6]} 19. Qe3 {[%clk 0:02:42.2]} 19...
h6 {[%clk 0:02:59.7]} 20. g3 {[%clk 0:02:17.3]} 20... Qh3 {[%clk 0:02:55.7]} 21.
Rxf8+ {[%clk 0:02:13.7]} 21... Rxf8 {[%clk 0:02:55.7]} 22. Qe2 {[%clk
0:02:09.9]} 22... Be8 {[%clk 0:02:51.6]} 23. Rg1 {[%clk 0:01:50.2]} 23... Bh5
{[%clk 0:02:51.1]} 24. g4 {[%clk 0:01:44.5]} 24... Bg6 {[%clk 0:02:36.6]} 25.
Rd1 {[%clk 0:01:19.5]} 25... Qh4 {[%clk 0:02:04.1]} 26. Qg2 {[%clk 0:00:53.6]}
26... Bxd3 {[%clk 0:01:52.2]} 27. Rxd3 {[%clk 0:00:39.5]} 27... Qe1+ {[%clk
0:01:51.2]} 28. Qg1 {[%clk 0:00:37.4]} 28... Rf1 {[%clk 0:01:50.5]} 29. Rg3
{[%clk 0:00:37.7]} 29... Rxg1+ {[%clk 0:01:49.8]} 30. Rxg1 {[%clk 0:00:37.5]}
30... Qe4+ {[%clk 0:01:50.5]} 0-1

[Event "*** Titled Tuesday 3|2 Blitz"]
[Site "Chess.com"]
[Date "2015.08.04"]
[Round "8"]
[White "fpawn"]
[Black "Carolina-moon"]
[Result "1-0"]
[WhiteElo "2096"]
[BlackElo "1986"]
[TimeControl "180+2"]
[EndTime "13:13:00 PDT"]
[Termination "fpawn won on time"]

1. e4 {[%clk 0:03:01.9]} 1... c5 {[%clk 0:03:00.1]} 2. Nc3 {[%clk 0:03:02.6]}
2... Nc6 {[%clk 0:02:59.1]} 3. g3 {[%clk 0:03:04.2]} 3... g6 {[%clk 0:02:59.2]}
4. Bg2 {[%clk 0:03:06.1]} 4... Bg7 {[%clk 0:03:00.6]} 5. d3 {[%clk 0:03:08]}
5... e6 {[%clk 0:02:47.9]} 6. Be3 {[%clk 0:03:09.9]} 6... Nd4 {[%clk 0:02:48.6]}
7. Nce2 {[%clk 0:03:09.6]} 7... Ne7 {[%clk 0:02:46]} 8. c3 {[%clk 0:03:09.9]}
8... Nxe2 {[%clk 0:02:46.8]} 9. Nxe2 {[%clk 0:03:11.8]} 9... d6 {[%clk
0:02:44.1]} 10. O-O {[%clk 0:03:11.7]} 10... O-O {[%clk 0:02:44.9]} 11. f4
{[%clk 0:03:09.5]} 11... Rb8 {[%clk 0:02:44.3]} 12. a4 {[%clk 0:03:06.4]} 12...
a6 {[%clk 0:02:44.6]} 13. a5 {[%clk 0:03:05.5]} 13... Nc6 {[%clk 0:02:42.9]} 14.
Qa4 {[%clk 0:03:01.2]} 14... Bd7 {[%clk 0:02:43]} 15. Qa3 {[%clk 0:03:00.9]}
15... Qc7 {[%clk 0:02:27.7]} 16. Rfd1 {[%clk 0:03:00.8]} 16... b5 {[%clk
0:02:17.3]} 17. axb6 {[%clk 0:02:41.4]} 17... Rxb6 {[%clk 0:02:18]} 18. Rd2
{[%clk 0:02:40.5]} 18... Rfb8 {[%clk 0:02:17.8]} 19. d4 {[%clk 0:02:34.8]} 19...
Rb3 {[%clk 0:02:13.3]} 20. Qa2 {[%clk 0:02:32.7]} 20... cxd4 {[%clk 0:02:09.9]}
21. Nxd4 {[%clk 0:02:33.6]} 21... Nxd4 {[%clk 0:02:06.4]} 22. Bxd4 {[%clk
0:02:35.5]} 22... Bxd4+ {[%clk 0:02:00.7]} 23. cxd4 {[%clk 0:02:35.1]} 23... Qb6
{[%clk 0:01:01.6]} 24. Rad1 {[%clk 0:02:27.1]} 24... Rxb2 {[%clk 0:00:52]} 25.
Rxb2 {[%clk 0:02:27.4]} 25... Qxb2 {[%clk 0:00:53]} 26. Qxa6 {[%clk 0:02:29]}
26... Qb4 {[%clk 0:00:22.2]} 27. Qd3 {[%clk 0:02:19.3]} 27... Bb5 {[%clk
0:00:20.2]} 28. Qd2 {[%clk 0:02:19.3]} 28... Qa3 {[%clk 0:00:16.2]} 29. Rb1
{[%clk 0:02:08.3]} 29... Qa6 {[%clk 0:00:09.3]} 30. Bf1 {[%clk 0:02:05.6]} 30...
Rb7 {[%clk 0:00:06.7]} 31. Qb4 {[%clk 0:02:02.2]} 1-0

[Event "*** Titled Tuesday 3|2 Blitz"]
[Site "Chess.com"]
[Date "2015.08.04"]
[Round "8"]
[White "mortalbovine"]
[Black "KyronGriffith"]
[Result "0-1"]
[WhiteElo "1776"]
[BlackElo "2224"]
[TimeControl "180+2"]
[EndTime "13:13:05 PDT"]
[Termination "KyronGriffith won by resignation"]

1. d4 {[%clk 0:03:01.9]} 1... Nf6 {[%clk 0:02:54.4]} 2. c4 {[%clk 0:03:00]} 2...
c5 {[%clk 0:02:55.8]} 3. d5 {[%clk 0:02:56.5]} 3... e6 {[%clk 0:02:56.7]} 4. Nf3
{[%clk 0:02:53.2]} 4... exd5 {[%clk 0:02:57.2]} 5. cxd5 {[%clk 0:02:50.7]} 5...
d6 {[%clk 0:02:57.4]} 6. Nc3 {[%clk 0:02:48.5]} 6... g6 {[%clk 0:02:57.2]} 7. e4
{[%clk 0:02:44.4]} 7... Bg7 {[%clk 0:02:55.4]} 8. h3 {[%clk 0:02:37.8]} 8... O-O
{[%clk 0:02:56]} 9. Bd3 {[%clk 0:02:32.8]} 9... b5 {[%clk 0:02:55.6]} 10. Bxb5
{[%clk 0:02:25.5]} 10... Nxe4 {[%clk 0:02:54.9]} 11. Nxe4 {[%clk 0:02:15.7]}
11... Qa5+ {[%clk 0:02:55.2]} 12. Nc3 {[%clk 0:02:16.6]} 12... Bxc3+ {[%clk
0:02:54.7]} 13. bxc3 {[%clk 0:02:17.1]} 13... Qxb5 {[%clk 0:02:52]} 14. Be3
{[%clk 0:01:55.6]} 14... Ba6 {[%clk 0:02:38.4]} 15. Rb1 {[%clk 0:01:47.4]} 15...
Qc4 {[%clk 0:02:36.9]} 16. Qb3 {[%clk 0:01:35.7]} 16... Qe4 {[%clk 0:02:27.9]}
17. Qd1 {[%clk 0:01:28.5]} 17... Qc4 {[%clk 0:02:26.7]} 18. Nd2 {[%clk
0:01:19.2]} 18... Qxd5 {[%clk 0:02:25.1]} 19. c4 {[%clk 0:01:12.6]} 19... Qxg2
{[%clk 0:02:22.9]} 20. Qf3 {[%clk 0:00:53.8]} 20... Qxf3 {[%clk 0:02:17.7]} 21.
Nxf3 {[%clk 0:00:55.7]} 21... Bxc4 {[%clk 0:02:18.8]} 22. Ng5 {[%clk 0:00:44.8]}
22... Nc6 {[%clk 0:02:12.9]} 23. a3 {[%clk 0:00:32.8]} 23... Rab8 {[%clk
0:02:11.3]} 24. Kd2 {[%clk 0:00:28.4]} 24... Bd5 {[%clk 0:02:06.6]} 25. Rhg1
{[%clk 0:00:24.1]} 25... Ne5 {[%clk 0:02:05.4]} 26. f4 {[%clk 0:00:19.1]} 26...
Nc4+ {[%clk 0:02:05.1]} 27. Ke2 {[%clk 0:00:19.9]} 27... Nxa3 {[%clk 0:01:56.2]}
28. Rxb8 {[%clk 0:00:19]} 28... Rxb8 {[%clk 0:01:58.1]} 29. Bd2 {[%clk
0:00:19.1]} 29... Nb5 {[%clk 0:01:56.7]} 30. Rg3 {[%clk 0:00:15.1]} 30... Nd4+
{[%clk 0:01:57.4]} 31. Kf2 {[%clk 0:00:15.3]} 31... Rb2 {[%clk 0:01:56.8]} 32.
Rd3 {[%clk 0:00:14.2]} 32... Bc4 {[%clk 0:01:54.7]} 0-1

[Event "*** Titled Tuesday 3|2 Blitz"]
[Site "Chess.com"]
[Date "2015.08.04"]
[Round "8"]
[White "Hikaru"]
[Black "Tesla37"]
[Result "1-0"]
[WhiteElo "2855"]
[BlackElo "2552"]
[TimeControl "180+2"]
[EndTime "13:13:54 PDT"]
[Termination "Hikaru won on time"]

1. d4 {[%clk 0:03:01.9]} 1... Nf6 {[%clk 0:03:00.5]} 2. Bg5 {[%clk 0:03:01.6]}
2... c5 {[%clk 0:03:00.6]} 3. d5 {[%clk 0:02:59.8]} 3... Ne4 {[%clk 0:03:00.7]}
4. Bf4 {[%clk 0:02:58.6]} 4... e6 {[%clk 0:02:56.8]} 5. f3 {[%clk 0:02:59.6]}
5... Qa5+ {[%clk 0:02:56.9]} 6. c3 {[%clk 0:02:58.7]} 6... Nf6 {[%clk
0:02:57.2]} 7. e4 {[%clk 0:03:00.3]} 7... exd5 {[%clk 0:02:58.4]} 8. e5 {[%clk
0:03:01.6]} 8... Ng8 {[%clk 0:02:35.8]} 9. Qxd5 {[%clk 0:03:01.1]} 9... Ne7
{[%clk 0:02:36.8]} 10. Qd2 {[%clk 0:03:01.6]} 10... Ng6 {[%clk 0:02:36.7]} 11.
Bg3 {[%clk 0:03:02.4]} 11... Nc6 {[%clk 0:02:36.9]} 12. f4 {[%clk 0:03:03.7]}
12... h5 {[%clk 0:02:26.9]} 13. Na3 {[%clk 0:03:01.8]} 13... Be7 {[%clk
0:02:02.3]} 14. Nf3 {[%clk 0:03:00.4]} 14... h4 {[%clk 0:01:57.3]} 15. Bf2
{[%clk 0:03:01]} 15... O-O {[%clk 0:01:56.6]} 16. Bd3 {[%clk 0:02:59.1]} 16...
d5 {[%clk 0:01:29.2]} 17. exd6 {[%clk 0:02:58.2]} 17... Bf6 {[%clk 0:01:30.4]}
18. O-O {[%clk 0:02:48.2]} 18... h3 {[%clk 0:01:25.7]} 19. Bxg6 {[%clk
0:02:43.8]} 19... hxg2 {[%clk 0:01:21.3]} 20. Rfe1 {[%clk 0:02:44.7]} 20... fxg6
{[%clk 0:01:21.8]} 21. d7 {[%clk 0:02:45.4]} 21... Qc7 {[%clk 0:00:58.9]} 22.
dxc8=Q {[%clk 0:02:34.7]} 22... Raxc8 {[%clk 0:00:59.8]} 23. Bg3 {[%clk
0:02:36.1]} 23... b5 {[%clk 0:00:45.9]} 24. Nxb5 {[%clk 0:02:36.3]} 24... Qb6
{[%clk 0:00:47.2]} 25. a4 {[%clk 0:02:35.5]} 25... a6 {[%clk 0:00:46]} 26. Nd6
{[%clk 0:02:33.1]} 26... Rcd8 {[%clk 0:00:44.1]} 27. Ng5 {[%clk 0:02:34.4]}
27... c4+ {[%clk 0:00:43.1]} 28. Kxg2 {[%clk 0:02:35.1]} 28... Ne7 {[%clk
0:00:38.9]} 29. Rad1 {[%clk 0:02:24.8]} 29... Qc6+ {[%clk 0:00:38.8]} 30. Nge4
{[%clk 0:02:25.7]} 30... Kh7 {[%clk 0:00:31.5]} 31. Kg1 {[%clk 0:02:26.3]} 31...
Nf5 {[%clk 0:00:28.2]} 32. Qg2 {[%clk 0:02:27]} 32... Qb6+ {[%clk 0:00:18]} 33.
Qf2 {[%clk 0:02:27.9]} 33... Qc6 {[%clk 0:00:11.1]} 34. Nxf5 {[%clk 0:02:28.3]}
34... Rxd1 {[%clk 0:00:09.9]} 35. Nxf6+ {[%clk 0:02:29.9]} 35... Rxf6 {[%clk
0:00:09.5]} 36. Rxd1 {[%clk 0:02:31.3]} 36... Rxf5 {[%clk 0:00:11.2]} 37. h4
{[%clk 0:02:22.2]} 37... Qxa4 {[%clk 0:00:11.7]} 38. Rd2 {[%clk 0:02:23.5]}
38... Qc6 {[%clk 0:00:11.1]} 39. Kh2 {[%clk 0:02:24.5]} 39... a5 {[%clk
0:00:12.2]} 40. Qg2 {[%clk 0:02:25.2]} 40... Qe6 {[%clk 0:00:12.4]} 41. Re2
{[%clk 0:02:25.7]} 41... Qd6 {[%clk 0:00:12]} 42. Qe4 {[%clk 0:02:26.2]} 42...
Qc5 {[%clk 0:00:09.8]} 43. Rd2 {[%clk 0:02:26.7]} 43... a4 {[%clk 0:00:10]} 44.
Rd8 {[%clk 0:02:27.5]} 44... Qb5 {[%clk 0:00:03.8]} 45. Qa8 {[%clk 0:02:11.5]}
1-0

[Event "*** Titled Tuesday 3|2 Blitz"]
[Site "Chess.com"]
[Date "2015.08.04"]
[Round "8"]
[White "rhungaski"]
[Black "petrpalachev"]
[Result "0-1"]
[WhiteElo "2461"]
[BlackElo "2374"]
[TimeControl "180+2"]
[EndTime "13:15:08 PDT"]
[Termination "petrpalachev won by checkmate"]

1. Nf3 {[%clk 0:03:01.9]} 1... d5 {[%clk 0:03:00.4]} 2. c4 {[%clk 0:03:00.9]}
2... e6 {[%clk 0:03:01.1]} 3. g3 {[%clk 0:03:01.4]} 3... Nf6 {[%clk 0:03:02.4]}
4. Bg2 {[%clk 0:03:02.5]} 4... Be7 {[%clk 0:03:04]} 5. O-O {[%clk 0:03:04]} 5...
O-O {[%clk 0:03:05.7]} 6. d4 {[%clk 0:03:05.1]} 6... dxc4 {[%clk 0:03:01.4]} 7.
Qc2 {[%clk 0:03:05.8]} 7... a6 {[%clk 0:03:01]} 8. Qxc4 {[%clk 0:03:06.5]} 8...
b5 {[%clk 0:03:02.1]} 9. Qc2 {[%clk 0:03:07.5]} 9... Bb7 {[%clk 0:03:03.5]} 10.
Bf4 {[%clk 0:03:07.9]} 10... Bd6 {[%clk 0:02:55.4]} 11. Nbd2 {[%clk 0:03:04.2]}
11... Nc6 {[%clk 0:02:30.9]} 12. Nb3 {[%clk 0:02:55.2]} 12... Nb4 {[%clk
0:02:27.8]} 13. Qd2 {[%clk 0:02:53]} 13... Ne4 {[%clk 0:02:20.4]} 14. Qc1 {[%clk
0:02:54]} 14... Nd5 {[%clk 0:02:07.2]} 15. Na5 {[%clk 0:02:49.7]} 15... Nxf4
{[%clk 0:01:46.3]} 16. gxf4 {[%clk 0:02:51.6]} 16... Bd5 {[%clk 0:01:46.4]} 17.
Ne5 {[%clk 0:02:49.5]} 17... Bxe5 {[%clk 0:01:40.2]} 18. fxe5 {[%clk 0:02:49.8]}
18... c5 {[%clk 0:01:39.2]} 19. Nb3 {[%clk 0:02:39.4]} 19... c4 {[%clk
0:01:22.7]} 20. Nd2 {[%clk 0:02:35.3]} 20... Nxd2 {[%clk 0:01:22]} 21. Qxd2
{[%clk 0:02:37.2]} 21... Bxg2 {[%clk 0:01:15.3]} 22. Kxg2 {[%clk 0:02:39.1]}
22... Qd5+ {[%clk 0:01:16.5]} 23. f3 {[%clk 0:02:34.1]} 23... Rad8 {[%clk
0:01:16.7]} 24. Rad1 {[%clk 0:02:30.5]} 24... f5 {[%clk 0:01:17]} 25. e3 {[%clk
0:02:25.5]} 25... Kh8 {[%clk 0:01:03]} 26. Kf2 {[%clk 0:02:03.9]} 26... Rd7
{[%clk 0:00:58.4]} 27. Qb4 {[%clk 0:02:03.1]} 27... Rc8 {[%clk 0:00:47.1]} 28.
Rg1 {[%clk 0:02:02.3]} 28... c3 {[%clk 0:00:45.9]} 29. b3 {[%clk 0:01:57.6]}
29... c2 {[%clk 0:00:43.3]} 30. Rc1 {[%clk 0:01:58.4]} 30... f4 {[%clk
0:00:41.2]} 31. Rg4 {[%clk 0:01:51.1]} 31... fxe3+ {[%clk 0:00:41.3]} 32. Kxe3
{[%clk 0:01:52]} 32... Rf7 {[%clk 0:00:36.8]} 33. Rg3 {[%clk 0:01:02.5]} 33...
Rcf8 {[%clk 0:00:24.5]} 34. Rxc2 {[%clk 0:00:59.3]} 34... Rxf3+ {[%clk
0:00:25.1]} 35. Kd2 {[%clk 0:00:59.2]} 35... Rf2+ {[%clk 0:00:19.9]} 36. Kc1
{[%clk 0:00:53.8]} 36... Rxc2+ {[%clk 0:00:19.8]} 37. Kxc2 {[%clk 0:00:55.7]}
37... Rf2+ {[%clk 0:00:17.9]} 38. Kc3 {[%clk 0:00:51]} 38... Qe4 {[%clk
0:00:12.2]} 39. Qd6 {[%clk 0:00:45.6]} 39... Qe1+ {[%clk 0:00:12.8]} 40. Kd3
{[%clk 0:00:44.5]} 40... Qe2+ {[%clk 0:00:13.3]} 41. Kc3 {[%clk 0:00:43.2]}
41... Qd2# {[%clk 0:00:14.8]} 0-1

[Event "*** Titled Tuesday 3|2 Blitz"]
[Site "Chess.com"]
[Date "2015.08.04"]
[Round "8"]
[White "chessking2151"]
[Black "Just-Live-Simply"]
[Result "1-0"]
[WhiteElo "2039"]
[BlackElo "1986"]
[TimeControl "180+2"]
[EndTime "13:15:29 PDT"]
[Termination "chessking2151 won by checkmate"]

1. e4 {[%clk 0:03:01.9]} 1... e6 {[%clk 0:03:00.9]} 2. d4 {[%clk 0:03:02.6]}
2... d5 {[%clk 0:03:01.9]} 3. Nd2 {[%clk 0:03:01.7]} 3... Nf6 {[%clk 0:03:01.8]}
4. e5 {[%clk 0:03:01.8]} 4... Nfd7 {[%clk 0:03:03.2]} 5. f4 {[%clk 0:03:02.2]}
5... c5 {[%clk 0:03:04]} 6. Ngf3 {[%clk 0:02:59.7]} 6... Nc6 {[%clk 0:03:04.8]}
7. c3 {[%clk 0:02:52.3]} 7... cxd4 {[%clk 0:03:05.7]} 8. cxd4 {[%clk 0:02:52.1]}
8... Qb6 {[%clk 0:03:07.2]} 9. Nb3 {[%clk 0:02:52.9]} 9... a5 {[%clk 0:03:06.6]}
10. a4 {[%clk 0:02:47.5]} 10... Bb4+ {[%clk 0:03:06.8]} 11. Kf2 {[%clk
0:02:47.2]} 11... f6 {[%clk 0:03:04.2]} 12. Be3 {[%clk 0:02:38.9]} 12... O-O
{[%clk 0:02:57.1]} 13. Bb5 {[%clk 0:02:36.8]} 13... Na7 {[%clk 0:02:04.9]} 14.
Bd3 {[%clk 0:02:35.8]} 14... Qd8 {[%clk 0:01:59.8]} 15. Qc2 {[%clk 0:02:33.9]}
15... g6 {[%clk 0:01:57]} 16. h4 {[%clk 0:02:23.3]} 16... Qe7 {[%clk 0:01:48.6]}
17. h5 {[%clk 0:02:20.7]} 17... g5 {[%clk 0:01:37.5]} 18. exf6 {[%clk
0:02:11.7]} 18... Nxf6 {[%clk 0:01:38]} 19. Nxg5 {[%clk 0:02:07.3]} 19... Ng4+
{[%clk 0:01:36.8]} 20. Ke2 {[%clk 0:02:07.7]} 20... Nxe3 {[%clk 0:01:32.9]} 21.
Kxe3 {[%clk 0:02:07.4]} 21... e5 {[%clk 0:01:11.4]} 22. Bxh7+ {[%clk 0:02:03.8]}
22... Kh8 {[%clk 0:01:12.1]} 23. dxe5 {[%clk 0:02:04.9]} 23... Nc6 {[%clk
0:01:08.1]} 24. Nf3 {[%clk 0:00:59.8]} 24... Bg4 {[%clk 0:00:58.4]} 25. Bg6
{[%clk 0:00:55.6]} 25... Bxf3 {[%clk 0:00:37.2]} 26. gxf3 {[%clk 0:00:52]} 26...
Nxe5 {[%clk 0:00:27.4]} 27. fxe5 {[%clk 0:00:48.4]} 27... Qxe5+ {[%clk
0:00:29.3]} 28. Kf2 {[%clk 0:00:44.2]} 28... Rae8 {[%clk 0:00:30]} 29. Rhf1
{[%clk 0:00:21.7]} 29... Qe3+ {[%clk 0:00:24.4]} 30. Kg2 {[%clk 0:00:21.3]}
30... Re5 {[%clk 0:00:24]} 31. Rf2 {[%clk 0:00:21.4]} 31... Rg5+ {[%clk
0:00:23.4]} 32. Kf1 {[%clk 0:00:22.5]} 32... Qe6 {[%clk 0:00:14.4]} 33. Nd2
{[%clk 0:00:14.8]} 33... Qh3+ {[%clk 0:00:13.8]} 34. Ke2 {[%clk 0:00:15.6]}
34... Re5+ {[%clk 0:00:12.2]} 35. Ne4 {[%clk 0:00:15.7]} 35... dxe4 {[%clk
0:00:11.4]} 36. Bxe4 {[%clk 0:00:17]} 36... Qh4 {[%clk 0:00:09.4]} 37. Rg1
{[%clk 0:00:15.3]} 37... Rfe8 {[%clk 0:00:06.5]} 38. Rg4 {[%clk 0:00:15.8]}
38... Qe7 {[%clk 0:00:04.4]} 39. Qc1 {[%clk 0:00:15.8]} 39... Qf7 {[%clk
0:00:05]} 40. Qh6+ {[%clk 0:00:16.7]} 40... Qh7 {[%clk 0:00:05]} 41. Qf6+ {[%clk
0:00:17.9]} 41... Qg7 {[%clk 0:00:04.4]} 42. Qxg7# {[%clk 0:00:19.8]} 1-0

[Event "*** Titled Tuesday 3|2 Blitz"]
[Site "Chess.com"]
[Date "2015.08.04"]
[Round "8"]
[White "ChessMavenYeti"]
[Black "NowInChess"]
[Result "0-1"]
[WhiteElo "2041"]
[BlackElo "1987"]
[TimeControl "180+2"]
[EndTime "13:15:41 PDT"]
[Termination "NowInChess won by resignation"]

1. d4 {[%clk 0:03:01.9]} 1... Nf6 {[%clk 0:03:00.5]} 2. c4 {[%clk 0:03:03]} 2...
c5 {[%clk 0:03:01.2]} 3. d5 {[%clk 0:03:03.7]} 3... e5 {[%clk 0:03:02.2]} 4. g3
{[%clk 0:03:03.4]} 4... d6 {[%clk 0:03:02.7]} 5. Bg2 {[%clk 0:03:05]} 5... g6
{[%clk 0:03:03.9]} 6. Nc3 {[%clk 0:03:04.6]} 6... Bg7 {[%clk 0:03:05.1]} 7. e4
{[%clk 0:03:05.9]} 7... O-O {[%clk 0:03:04.7]} 8. Nge2 {[%clk 0:03:07.5]} 8...
a6 {[%clk 0:03:05.2]} 9. O-O {[%clk 0:03:08.9]} 9... b5 {[%clk 0:03:04.9]} 10.
cxb5 {[%clk 0:03:09.6]} 10... Nbd7 {[%clk 0:03:00.2]} 11. Bg5 {[%clk 0:03:04.7]}
11... Qb6 {[%clk 0:03:00.4]} 12. a4 {[%clk 0:03:03.9]} 12... c4 {[%clk 0:02:52]}
13. a5 {[%clk 0:03:03.4]} 13... Qb8 {[%clk 0:02:42]} 14. b6 {[%clk 0:03:04.3]}
14... Nc5 {[%clk 0:02:38.6]} 15. f4 {[%clk 0:02:54.4]} 15... h6 {[%clk
0:02:33.6]} 16. fxe5 {[%clk 0:02:52.9]} 16... hxg5 {[%clk 0:02:33]} 17. exf6
{[%clk 0:02:53.9]} 17... Bh6 {[%clk 0:02:34]} 18. Na4 {[%clk 0:02:39.1]} 18...
Nb3 {[%clk 0:02:31.8]} 19. Ra3 {[%clk 0:02:39.3]} 19... Nxa5 {[%clk 0:02:31.8]}
20. Qd2 {[%clk 0:02:30.3]} 20... Nb3 {[%clk 0:02:26.7]} 21. Qe3 {[%clk
0:02:30.6]} 21... Bd7 {[%clk 0:02:21]} 22. h4 {[%clk 0:02:30.1]} 22... Rc8
{[%clk 0:01:56.7]} 23. hxg5 {[%clk 0:02:30]} 23... Bf8 {[%clk 0:01:57.6]} 24.
Nf4 {[%clk 0:02:23.5]} 24... Bxa4 {[%clk 0:01:45.6]} 25. Rxa4 {[%clk 0:02:24.1]}
25... Nc5 {[%clk 0:01:44.6]} 26. Rb4 {[%clk 0:02:21.9]} 26... a5 {[%clk
0:01:32.7]} 27. Rb5 {[%clk 0:02:22.4]} 27... Ra6 {[%clk 0:01:33.2]} 28. b7
{[%clk 0:02:18.5]} 28... Rc7 {[%clk 0:01:28]} 29. Qd4 {[%clk 0:02:02.6]} 29...
Nb3 {[%clk 0:01:19.8]} 30. Qc3 {[%clk 0:01:56.2]} 30... Rxb7 {[%clk 0:01:15.9]}
31. Rxb7 {[%clk 0:01:54.6]} 31... Qxb7 {[%clk 0:01:16.2]} 32. Nxg6 {[%clk
0:01:51.9]} 32... fxg6 {[%clk 0:01:05.8]} 33. f7+ {[%clk 0:01:52.6]} 33... Kh7
{[%clk 0:01:01.4]} 34. Kf2 {[%clk 0:01:53.1]} 34... Qxf7+ {[%clk 0:00:55.7]} 35.
Ke1 {[%clk 0:01:52.6]} 35... Qg7 {[%clk 0:00:42.3]} 36. Qxc4 {[%clk 0:01:42.2]}
36... Rb6 {[%clk 0:00:31.2]} 37. Rxf8 {[%clk 0:01:36.8]} 37... Qxf8 {[%clk
0:00:20.5]} 38. Qc7+ {[%clk 0:01:37.9]} 38... Qg7 {[%clk 0:00:20.3]} 39. Qxb6
{[%clk 0:01:38.6]} 39... Qxb2 {[%clk 0:00:17.8]} 40. Qc7+ {[%clk 0:01:37.2]}
40... Kg8 {[%clk 0:00:18.3]} 41. Qd8+ {[%clk 0:01:37.3]} 41... Kf7 {[%clk
0:00:14.9]} 42. Qf6+ {[%clk 0:01:37]} 42... Qxf6 {[%clk 0:00:14.8]} 43. gxf6
{[%clk 0:01:37.6]} 43... Kxf6 {[%clk 0:00:16.7]} 44. Kd1 {[%clk 0:01:38.6]}
44... Ke5 {[%clk 0:00:16.6]} 45. Kc2 {[%clk 0:01:39.8]} 45... Nc5 {[%clk
0:00:17.5]} 46. Kc3 {[%clk 0:01:39.9]} 46... Nxe4+ {[%clk 0:00:18.5]} 47. Kc4
{[%clk 0:01:41.6]} 47... Nxg3 {[%clk 0:00:19.1]} 48. Kb5 {[%clk 0:01:42.4]}
48... Ne2 {[%clk 0:00:19.6]} 49. Kxa5 {[%clk 0:01:43.2]} 49... Nf4 {[%clk
0:00:20.9]} 50. Bh1 {[%clk 0:01:44.2]} 50... Nxd5 {[%clk 0:00:21.4]} 51. Kb5
{[%clk 0:01:46.1]} 51... Nf4 {[%clk 0:00:19.2]} 52. Kc4 {[%clk 0:01:48]} 52...
d5+ {[%clk 0:00:20]} 53. Kc5 {[%clk 0:01:48.9]} 53... g5 {[%clk 0:00:19.6]} 54.
Bf3 {[%clk 0:01:48.9]} 54... d4 {[%clk 0:00:19.3]} 55. Kc4 {[%clk 0:01:49.9]}
55... Ne6 {[%clk 0:00:18.4]} 56. Bg4 {[%clk 0:01:49.7]} 56... Nf4 {[%clk
0:00:18.5]} 57. Bf3 {[%clk 0:01:48.7]} 57... d3 {[%clk 0:00:19]} 58. Kc3 {[%clk
0:01:49.7]} 58... Kf5 {[%clk 0:00:18.7]} 59. Kd2 {[%clk 0:01:50.3]} 59... g4
{[%clk 0:00:19.4]} 60. Bd1 {[%clk 0:01:51.1]} 60... g3 {[%clk 0:00:19.8]} 61.
Ke3 {[%clk 0:01:52.4]} 61... Ke5 {[%clk 0:00:19.1]} 62. Kf3 {[%clk 0:01:53.2]}
62... g2 {[%clk 0:00:18]} 63. Kf2 {[%clk 0:01:55.1]} 63... Kd4 {[%clk
0:00:18.8]} 64. Ba4 {[%clk 0:01:55.2]} 64... Kc3 {[%clk 0:00:18.7]} 65. Bd1
{[%clk 0:01:56.1]} 65... Kb2 {[%clk 0:00:19.6]} 66. Bf3 {[%clk 0:01:58]} 66...
Kc1 {[%clk 0:00:19.7]} 67. Bxg2 {[%clk 0:01:57]} 67... Nxg2 {[%clk 0:00:20]} 68.
Kxg2 {[%clk 0:01:56.3]} 68... d2 {[%clk 0:00:21.2]} 0-1